lending/lending_fUSD_20240206
["ID","MTS","AMOUNT","RATE_DAILY","PERIOD"]
[313361385,1707233424347,-500.0,0.00049726,60]
[313361386,1707233424370,-500.0,0.00049726,60]
[313361387,1707233424392,-568.40638482,0.00049726,60]
[313361388,1707233424415,-200.14949305,0.00049726,60]
[313361389,1707233424437,-500.0,0.00049726,60]
[313361390,1707233424460,-500.0,0.00049726,60]
[313361391,1707233424482,-500.0,0.00049726,60]
[313361392,1707233424504,-500.0,0.00049726,60]
[313361393,1707233424529,-500.0,0.00049726,60]
[313361394,1707233424553,-500.0,0.00049726,60]
[313361395,1707233424576,-500.0,0.00049726,60]
[313361396,1707233424597,-500.0,0.00049726,60]
[313361397,1707233424619,-500.0,0.00049726,60]
[313361398,1707233424641,-500.0,0.00049726,60]
[313361399,1707233424663,-500.0,0.00049726,60]
[313361400,1707233424687,-381.71925344,0.00049726,60]
[313361401,1707233424709,-500.0,0.00049726,60]
[313361402,1707233424731,-500.0,0.00049726,60]
[313361403,1707233424753,-500.0,0.00049726,60]
[313361404,1707233424778,-500.0,0.00049726,60]
[313361405,1707233424801,-500.0,0.00049726,60]
[313361406,1707233424824,-500.0,0.00049726,60]
[313361407,1707233424851,-500.0,0.00049726,60]
[313361408,1707233424873,-428.59007666,0.00049726,60]
[313361409,1707233424895,-178.94873391,0.00049726,60]
[313361410,1707233424916,-500.0,0.00049726,60]
[313361411,1707233424938,-500.0,0.00049726,60]
[313361412,1707233424962,-500.0,0.00049726,60]
[313361413,1707233424985,-500.0,0.00049726,60]
[313361414,1707233425008,-500.0,0.00049726,60]
[313361415,1707233425036,-500.0,0.00049726,60]
[313361416,1707233425059,-500.0,0.00049726,60]
[313361417,1707233425081,-592.20171517,0.00049726,60]
[313361418,1707233425104,-500.0,0.00049726,60]
[313361419,1707233425127,-500.0,0.00049726,60]
[313361420,1707233425150,-500.0,0.00049726,60]
[313361421,1707233425173,-543.35376121,0.00049726,60]
[313361422,1707233425197,-500.0,0.00049726,60]
[313361423,1707233425222,-500.0,0.00049726,60]
[313361424,1707233425246,-500.0,0.00049726,60]
[313361425,1707233425273,-572.9812538,0.00049726,60]
[313361426,1707233425297,-500.0,0.00049726,60]
[313361427,1707233425319,-500.0,0.00049726,60]
[313361428,1707233425341,-722.0,0.00049726,60]
[313361429,1707233425363,-500.0,0.00049726,60]
[313361430,1707233425385,-573.27165737,0.00049726,60]
[313361431,1707233425406,-500.0,0.00049726,60]
[313361432,1707233425427,-613.74135799,0.00049726,60]
[313361433,1707233425450,-500.0,0.00049726,60]
[313361434,1707233425471,-500.0,0.00049726,60]
[313361435,1707233425598,-500.0,0.00049726,60]
[313361436,1707233425620,-1736.8,0.00049726,60]
[313361437,1707233425642,-500.0,0.00049726,60]
[313361438,1707233425664,-500.0,0.00049726,60]
[313361439,1707233425894,-500.0,0.00049726,60]
[313361440,1707233425920,-500.0,0.00049726,60]
[313361441,1707233425943,-558.83,0.00049726,60]
[313361442,1707233425966,-500.0,0.00049726,60]
[313361443,1707233425988,-500.0,0.00049726,60]
[313361444,1707233426010,-218.77271421,0.00049726,60]
[313361445,1707233426034,-500.0,0.00049726,60]
[313361446,1707233426056,-267.63771004,0.00049726,60]
[313361447,1707233426078,-500.0,0.00049726,60]
[313361448,1707233426101,-500.0,0.00049726,60]
[313361449,1707233426124,-500.0,0.00049726,60]
[313361450,1707233426161,-500.0,0.00049726,60]
[313361451,1707233426186,-500.0,0.00049726,60]
[313361452,1707233426210,-500.0,0.00049726,60]
[313361453,1707233426234,-500.0,0.00049726,60]
[313361454,1707233426258,-500.0,0.00049726,60]
[313361455,1707233426283,-500.0,0.00049726,60]
[313361456,1707233426308,-500.0,0.00049726,60]
[313361457,1707233426336,-587.1431081,0.00049726,60]
[313361458,1707233426360,-500.0,0.00049726,60]
[313361459,1707233426383,-184.0487683,0.00049726,60]
[313361460,1707233426406,-500.0,0.00049726,60]
[313361461,1707233426430,-500.0,0.00049726,60]
[313361462,1707233426454,-500.0,0.00049726,60]
[313361463,1707233426477,-500.0,0.00049726,60]
[313361464,1707233426500,-500.0,0.00049726,60]
[313361465,1707233426526,-226.51728828,0.00049726,60]
[313361466,1707233426550,-500.0,0.00049726,60]
[313361467,1707233426573,-500.0,0.00049726,60]
[313361468,1707233426597,-500.0,0.00049726,60]
[313361469,1707233426620,-500.0,0.00049726,60]
[313361470,1707233426643,-500.0,0.00049726,60]
[313361471,1707233426665,-500.0,0.00049726,60]
[313361472,1707233426690,-500.0,0.00049726,60]
[313361473,1707233426713,-500.0,0.00049726,60]
[313361474,1707233426736,-622.41,0.00049726,60]
[313361475,1707233426759,-500.0,0.00049726,60]
[313361476,1707233426782,-231.14984712,0.00049726,60]
[313361477,1707233426806,-434.79586766,0.00049726,60]
[313361478,1707233426828,-500.0,0.00049726,60]
[313361479,1707233426852,-500.0,0.00049726,60]
[313361480,1707233426875,-500.0,0.00049726,60]
[313361481,1707233426897,-500.0,0.00049726,60]
[313361482,1707233426923,-500.0,0.00049726,60]
[313361483,1707233426947,-500.0,0.00049726,60]
[313361484,1707233426971,-500.0,0.00049726,60]
[313361485,1707233426994,-500.0,0.00049726,60]
[313361486,1707233427018,-500.0,0.00049726,60]
[313361487,1707233427045,-500.0,0.00049726,60]
[313361488,1707233427069,-500.0,0.00049726,60]
[313361489,1707233427093,-500.0,0.00049726,60]
[313361490,1707233427117,-578.65,0.00049726,60]
[313361491,1707233427141,-500.0,0.00049726,60]
[313361492,1707233427167,-500.0,0.00049726,60]
[313361493,1707233427190,-500.0,0.00049726,60]
[313361494,1707233427215,-500.0,0.00049726,60]
[313361495,1707233427239,-946.27,0.00049726,60]
[313361496,1707233427264,-500.0,0.00049726,60]
[313361497,1707233427291,-500.0,0.00049726,60]
[313361498,1707233427315,-178.35805093,0.00049726,60]
[313361499,1707233427340,-500.0,0.00049726,60]
[313361500,1707233427364,-1000000.0,0.0004975,120]
[313361501,1707233427388,-1375.09435477,0.000498,120]
[313361502,1707233427419,-1000000.0,0.000498,120]
[313361503,1707233427443,-165.56669244,0.000498,37]
[313361504,1707233427468,-5762.775792,0.000499,58]
[313361505,1707233427491,-6002.83316011,0.00049999,60]
[313361506,1707233427515,-234.66924482,0.00049999,120]
[313361507,1707233427541,-409.06188542,0.00049999,120]
[313361508,1707233427566,-500.0,0.00049999,120]
[313361509,1707233427589,-500.0,0.00049999,120]
[313361510,1707233427613,-500.0,0.00049999,120]
[313361511,1707233427636,-500.0,0.00049999,120]
[313361512,1707233427659,-500.0,0.00049999,120]
[313361513,1707233427682,-500.0,0.00049999,120]
[313361514,1707233427706,-500.0,0.00049999,120]
[313361515,1707233427734,-500.0,0.00049999,120]
[313361516,1707233427757,-500.0,0.00049999,120]
[313361517,1707233427783,-186.50454906,0.00049999,120]
[313361518,1707233427806,-500.0,0.00049999,120]
[313361519,1707233427833,-500.0,0.00049999,120]
[313361520,1707233427858,-500.0,0.00049999,120]
[313361521,1707233427882,-500.0,0.00049999,120]
[313361522,1707233428034,-500.0,0.00049999,120]
[313361523,1707233428059,-500.0,0.00049999,120]
[313361524,1707233428083,-500.0,0.00049999,120]
[313361525,1707233428107,-500.0,0.00049999,120]
[313361526,1707233428130,-500.0,0.00049999,120]
[313361527,1707233428154,-500.0,0.00049999,120]
[313361528,1707233428179,-618.39112375,0.00049999,120]
[313361529,1707233428201,-500.0,0.00049999,120]
[313361530,1707233428225,-500.0,0.00049999,120]
[313361531,1707233428249,-500.0,0.00049999,120]
[313361532,1707233428274,-500.0,0.00049999,120]
[313361533,1707233428297,-1000.0,0.00049999,120]
[313361534,1707233428323,-100000.0,0.0005,40]
[313361535,1707233428346,-752111.24538429,0.0005,120]
[313361536,1707233428370,-1084088.27550122,0.0005,120]
[313361557,1707233433968,-2405.88873002,0.00044,120]
[313361560,1707233434036,-5000.0,0.00049315,45]
[313361561,1707233434183,-500.0,0.00049726,60]
[313361562,1707233434215,-1375.09435477,0.0005,120]
[313361563,1707233434240,-915911.72449878,0.0005,120]
[313361564,1707233434264,-2500.0,0.0005,120]
[313361565,1707233434290,-1001.13,0.0005,120]
[313361568,1707233434314,-150.0,0.0005,120]
[313361571,1707233434338,-5726.399903,0.0005,58]
[313361575,1707233434362,-1000.0,0.0005,39]
[313361577,1707233434387,-666.29395341,0.00050025,60]
[313361579,1707233434409,-500.0,0.00050136,60]
[313361582,1707233434433,-610.61721391,0.00050136,60]
[313361584,1707233434456,-181.56793518,0.00050136,60]
[313361585,1707233434478,-500.0,0.00050136,60]
[313361586,1707233434501,-567.75008006,0.00050136,60]
[313361587,1707233434525,-500.0,0.00050136,60]
[313361588,1707233434549,-500.0,0.00050136,60]
[313361589,1707233434572,-500.0,0.00050136,60]
[313361590,1707233434595,-500.0,0.00050136,60]
[313361591,1707233434617,-521.28,0.00050136,60]
[313361592,1707233434639,-500.0,0.00050136,60]
[313361593,1707233434661,-500.0,0.00050136,60]
[313361594,1707233434686,-550.97858192,0.00050136,60]
[313361595,1707233434708,-500.0,0.00050136,60]
[313361596,1707233434729,-500.0,0.00050136,60]
[313361597,1707233434751,-500.0,0.00050136,60]
[313361598,1707233434774,-500.0,0.00050136,60]
[313361599,1707233434797,-500.0,0.00050136,60]
[313361600,1707233434818,-500.0,0.00050136,60]
[313361601,1707233434840,-500.0,0.00050136,60]
[313361602,1707233434864,-323.32753346,0.00050136,60]
[313361603,1707233434888,-500.0,0.00050136,60]
[313361604,1707233434911,-215.07,0.00050136,60]
[313361605,1707233434933,-513.85536542,0.00050136,60]
[313361606,1707233434956,-542.21631583,0.00050136,60]
[313361607,1707233434979,-221.84097077,0.00050136,60]
[313361608,1707233435002,-500.0,0.00050136,60]
[313361609,1707233435030,-184.7723065,0.00050136,60]
[313361610,1707233435053,-156.05794514,0.00050136,60]
[313361611,1707233435082,-503.30046636,0.00050136,60]
[313361612,1707233435106,-500.0,0.00050136,60]
[313361613,1707233435130,-545.04661331,0.00050136,60]
[313361614,1707233435153,-500.0,0.00050136,60]
[313361615,1707233435177,-500.0,0.00050136,60]
[313361616,1707233435201,-509.06182189,0.00050136,60]
[313361617,1707233435223,-500.0,0.00050136,60]
[313361618,1707233435246,-500.0,0.00050136,60]
[313361619,1707233435269,-151.26749419,0.00050136,60]
[313361620,1707233435294,-326.42316263,0.00050136,60]
[313361621,1707233435318,-500.0,0.00050136,60]
[313361622,1707233435342,-500.0,0.00050136,60]
[313361623,1707233435368,-500.0,0.00050136,60]
[313361624,1707233435391,-500.0,0.00050136,60]
[313361625,1707233435414,-642.69407545,0.00050136,60]
[313361626,1707233435437,-500.0,0.00050136,60]
[313361627,1707233435459,-500.0,0.00050136,60]
[313361628,1707233435482,-500.0,0.00050136,60]
[313361629,1707233435505,-468.58767893,0.00050136,60]
[313361630,1707233435531,-568.2970578,0.00050136,60]
[313361631,1707233435554,-500.0,0.00050136,60]
[313361632,1707233435577,-500.0,0.00050136,60]
[313361633,1707233435600,-577.43482168,0.00050136,60]
[313361634,1707233435623,-500.0,0.00050136,60]
[313361635,1707233435647,-500.0,0.00050136,60]
[313361636,1707233435671,-399.9130098,0.00050136,60]
[313361637,1707233435694,-561.76050673,0.00050136,60]
[313361638,1707233435718,-500.0,0.00050136,60]
[313361639,1707233435742,-500.0,0.00050136,60]
[313361640,1707233435765,-500.0,0.00050136,60]
[313361641,1707233435790,-500.0,0.00050136,60]
[313361642,1707233435814,-563.55491712,0.00050136,60]
[313361643,1707233435837,-500.0,0.00050136,60]
[313361644,1707233435860,-500.0,0.00050136,60]
[313361645,1707233435884,-410.49,0.00050136,60]
[313361646,1707233435907,-168.41547692,0.00050136,60]
[313361647,1707233435929,-156.14919291,0.00050136,60]
[313361648,1707233435952,-500.0,0.00050136,60]
[313361649,1707233435974,-500.0,0.00050136,60]
[313361650,1707233435999,-500.0,0.00050136,60]
[313361651,1707233436023,-500.0,0.00050136,60]
[313361652,1707233436048,-500.0,0.00050136,60]
[313361653,1707233436178,-500.0,0.00050136,60]
[313361654,1707233436203,-641.34951314,0.00050136,60]
[313361655,1707233436231,-500.0,0.00050136,60]
[313361656,1707233436255,-459.26226698,0.00050136,60]
[313361657,1707233436279,-500.0,0.00050136,60]
[313361658,1707233436303,-1214.81,0.00050136,60]
[313361659,1707233436327,-163.55811173,0.00050136,60]
[313361660,1707233436350,-500.0,0.00050136,60]
[313361661,1707233436373,-404.2445454,0.00050136,60]
[313361662,1707233436394,-150.0,0.00050136,60]
[313361663,1707233436417,-500.0,0.00050136,60]
[313361664,1707233436440,-241.8399871,0.00050136,60]
[313361665,1707233436462,-500.0,0.00050136,60]
[313361666,1707233436485,-282.39572434,0.00050136,60]
[313361667,1707233436506,-588.09824209,0.00050136,60]
[313361668,1707233436528,-561.09,0.00050136,60]
[313361669,1707233436550,-543.02302919,0.00050136,60]
[313361670,1707233436572,-500.0,0.00050136,60]
[313361671,1707233436602,-500.0,0.00050136,60]
[313361672,1707233436624,-500.0,0.00050136,60]
[313361673,1707233436647,-152.15410228,0.00050136,60]
[313361674,1707233436670,-500.0,0.00050136,60]
[313361675,1707233436693,-826.53,0.00050136,60]
[313361676,1707233436716,-500.0,0.00050136,60]
[313361677,1707233436739,-161.90701075,0.00050136,60]
[313361678,1707233436777,-500.0,0.00050136,60]
[313361679,1707233436813,-500.0,0.00050136,60]
[313361680,1707233436836,-500.16770221,0.00050136,60]
[313361681,1707233436859,-903.63,0.00050136,60]
[313361682,1707233436882,-500.0,0.00050136,60]
[313361683,1707233436905,-356.07033481,0.00050136,60]
[313361684,1707233436926,-500.0,0.00050136,60]
[313361685,1707233436949,-500.0,0.00050136,60]
[313361686,1707233436971,-500.0,0.00050136,60]
[313361687,1707233437003,-510.03415122,0.00050136,60]
[313361688,1707233437030,-500.0,0.00050136,60]
[313361689,1707233437054,-1000.0,0.00050136,60]
[313361690,1707233437079,-280.86,0.00050136,60]
[313361691,1707233437103,-500.0,0.00050136,60]
[313361692,1707233437132,-500.0,0.00050136,60]
[313361693,1707233437156,-500.0,0.00050136,60]
[313361694,1707233437179,-150.6534034,0.00050136,60]
[313361695,1707233437203,-500.0,0.00050136,60]
[313361696,1707233437226,-175.02570666,0.00050136,60]
[313361697,1707233437249,-606.65,0.00050136,60]
[313361698,1707233437273,-500.0,0.00050136,60]
[313361699,1707233437296,-500.0,0.00050136,60]
[313361700,1707233437319,-500.0,0.00050136,60]
[313361701,1707233437341,-505.21853153,0.00050136,60]
[313361702,1707233437364,-604.41425415,0.00050136,60]
[313361703,1707233437387,-500.0,0.00050136,60]
[313361704,1707233437411,-500.0,0.00050136,60]
[313361705,1707233437435,-500.0,0.00050136,60]
[313361706,1707233437457,-529.44172344,0.00050136,60]
[313361707,1707233437481,-638.56162997,0.00050136,60]
[313361708,1707233437504,-500.0,0.00050136,60]
[313361709,1707233437528,-500.0,0.00050136,60]
[313361713,1707233437552,-500.0,0.00050136,60]
[313361715,1707233437578,-509.40300022,0.00050136,60]
[313361718,1707233437600,-500.0,0.00050136,60]
[313361721,1707233437623,-500.0,0.00050136,60]
[313361725,1707233437646,-500.0,0.00050136,60]
[313361728,1707233437668,-500.0,0.00050136,60]
[313361731,1707233437695,-564.31693683,0.00050136,60]
[313361734,1707233437720,-500.0,0.00050136,60]
[313361736,1707233437743,-500.0,0.00050136,60]
[313361737,1707233437767,-588.07591396,0.00050136,60]
[313361738,1707233437791,-500.0,0.00050136,60]
[313361739,1707233437814,-294.84511505,0.00050136,60]
[313361740,1707233437837,-232.69552239,0.00050136,60]
[313361741,1707233437861,-500.0,0.00050136,60]
[313361742,1707233437884,-500.0,0.00050136,60]
[313361743,1707233437906,-500.0,0.00050136,60]
[313361744,1707233437930,-500.0,0.00050136,60]
[313361745,1707233437953,-500.0,0.00050136,60]
[313361746,1707233437975,-423.71788968,0.00050136,60]
[313361747,1707233438001,-500.0,0.00050136,60]
[313361748,1707233438024,-500.0,0.00050136,60]
[313361749,1707233438049,-500.0,0.00050136,60]
[313361752,1707233438072,-500.0,0.00050136,60]
[313361755,1707233438224,-500.0,0.00050136,60]
[313361758,1707233438247,-500.0,0.00050136,60]
[313361760,1707233438269,-616.80831748,0.00050136,60]
[313361763,1707233438292,-500.0,0.00050136,60]
[313361766,1707233438314,-500.0,0.00050136,60]
[313361769,1707233438338,-218.89778847,0.00050136,60]
[313361772,1707233438361,-947.83,0.00050136,60]
[313361775,1707233438384,-500.0,0.00050136,60]
[313361778,1707233438407,-500.0,0.00050136,60]
[313361779,1707233438430,-758.62,0.00050136,60]
[313361780,1707233438453,-500.0,0.00050136,60]
[313361781,1707233438475,-659.18,0.00050136,60]
[313361782,1707233438497,-500.0,0.00050136,60]
[313361783,1707233438519,-500.0,0.00050136,60]
[313361784,1707233438542,-500.0,0.00050136,60]
[313361785,1707233438563,-500.0,0.00050136,60]
[313361786,1707233438586,-500.0,0.00050136,60]
[313361787,1707233438608,-500.0,0.00050136,60]
[313361788,1707233438631,-500.0,0.00050136,60]
[313361789,1707233438653,-500.0,0.00050136,60]
[313361790,1707233438676,-500.0,0.00050136,60]
[313361791,1707233438703,-500.0,0.00050136,60]
[313361792,1707233438725,-500.0,0.00050136,60]
[313361793,1707233438748,-500.0,0.00050136,60]
[313361794,1707233438771,-500.0,0.00050136,60]
[313361795,1707233438793,-552.25622887,0.00050136,60]
[313361796,1707233438815,-500.0,0.00050136,60]
[313361797,1707233438841,-500.0,0.00050136,60]
[313361798,1707233438864,-500.0,0.00050136,60]
[313361799,1707233438885,-500.0,0.00050136,60]
[313361800,1707233438908,-500.0,0.00050136,60]
[313361801,1707233438930,-500.0,0.00050136,60]
[313361802,1707233438952,-500.0,0.00050136,60]
[313361803,1707233438974,-500.0,0.00050136,60]
[313361804,1707233438996,-500.0,0.00050136,60]
[313361805,1707233439019,-500.0,0.00050136,60]
[313361806,1707233439042,-500.0,0.00050136,60]
[313361807,1707233439065,-500.0,0.00050136,60]
[313361808,1707233439090,-500.0,0.00050136,60]
[313361809,1707233439113,-171.24102249,0.00050136,60]
[313361810,1707233439135,-500.0,0.00050136,60]
[313361811,1707233439158,-500.0,0.00050136,60]
[313361812,1707233439181,-500.0,0.00050136,60]
[313361813,1707233439206,-162.87305222,0.00050136,60]
[313361814,1707233439229,-595.82944688,0.00050136,60]
[313361815,1707233439251,-500.0,0.00050136,60]
[313361816,1707233439274,-500.0,0.00050136,60]
[313361817,1707233439297,-500.0,0.00050136,60]
[313361818,1707233439320,-500.0,0.00050136,60]
[313361819,1707233439342,-555.40478954,0.00050136,60]
[313361820,1707233439366,-500.0,0.00050136,60]
[313361821,1707233439388,-500.0,0.00050136,60]
[313361822,1707233439412,-500.0,0.00050136,60]
[313361823,1707233439434,-629.24472716,0.00050136,60]
[313361824,1707233439458,-152.81079477,0.00050136,60]
[313361826,1707233439481,-500.0,0.00050136,60]
[313361829,1707233439510,-500.0,0.00050136,60]
[313361830,1707233439534,-500.0,0.00050136,60]
[313361831,1707233439557,-500.0,0.00050136,60]
[313361832,1707233439580,-500.0,0.00050136,60]
[313361833,1707233439602,-500.0,0.00050136,60]
[313361834,1707233439624,-500.0,0.00050136,60]
[313361835,1707233439647,-722.0,0.00050136,60]
[313361836,1707233439669,-500.0,0.00050136,60]
[313361837,1707233439692,-500.0,0.00050136,60]
[313361838,1707233439715,-500.0,0.00050136,60]
[313361839,1707233439738,-500.0,0.00050136,60]
[313361840,1707233439761,-500.0,0.00050136,60]
[313361841,1707233439787,-1736.8,0.00050136,60]
[313361842,1707233439810,-500.0,0.00050136,60]
[313361843,1707233439833,-500.0,0.00050136,60]
[313361844,1707233439857,-578.1612076,0.00050136,60]
[313361845,1707233439879,-500.0,0.00050136,60]
[313361846,1707233439902,-558.83,0.00050136,60]
[313361847,1707233439925,-500.0,0.00050136,60]
[313361848,1707233439948,-500.0,0.00050136,60]
[313361852,1707233440068,-184.03927205,0.00050136,60]
[313361853,1707233440092,-500.0,0.00050136,60]
[313361855,1707233440115,-500.0,0.00050136,60]
[313361856,1707233440138,-500.0,0.00050136,60]
[313361857,1707233440162,-500.0,0.00050136,60]
[313361858,1707233440185,-545.15128402,0.00050136,60]
[313361860,1707233440208,-164.67098841,0.00050136,60]
[313361861,1707233440231,-500.0,0.00050136,60]
[313361862,1707233440254,-500.0,0.00050136,60]
[313361863,1707233440277,-500.0,0.00050136,60]
[313361864,1707233440302,-500.0,0.00050136,60]
[313361865,1707233440325,-500.0,0.00050136,60]
[313361866,1707233440347,-500.0,0.00050136,60]
[313361867,1707233440370,-500.0,0.00050136,60]
[313361868,1707233440393,-500.0,0.00050136,60]
[313361869,1707233440415,-500.0,0.00050136,60]
[313361870,1707233440439,-500.0,0.00050136,60]
[313361871,1707233440461,-500.0,0.00050136,60]
[313361872,1707233440485,-500.0,0.00050136,60]
[313361873,1707233440509,-500.0,0.00050136,60]
[313361874,1707233440533,-500.0,0.00050136,60]
[313361875,1707233440557,-500.0,0.00050136,60]
[313361876,1707233440581,-500.0,0.00050136,60]
[313361877,1707233440606,-500.0,0.00050136,60]
[313361878,1707233440629,-500.0,0.00050136,60]
[313361879,1707233440656,-622.41,0.00050136,60]
[313361880,1707233440681,-500.0,0.00050136,60]
[313361881,1707233440709,-500.0,0.00050136,60]
[313361882,1707233440733,-500.0,0.00050136,60]
[313361883,1707233440757,-500.0,0.00050136,60]
[313361884,1707233440788,-309.54444962,0.00050136,60]
[313361885,1707233440817,-500.0,0.00050136,60]
[313361886,1707233440844,-500.0,0.00050136,60]
[313361887,1707233440872,-500.0,0.00050136,60]
[313361888,1707233440898,-165.97559637,0.00050136,60]
[313361889,1707233440924,-500.0,0.00050136,60]
[313361890,1707233440951,-500.0,0.00050136,60]
[313361891,1707233440976,-500.0,0.00050136,60]
[313361892,1707233441001,-500.0,0.00050136,60]
[313361893,1707233441026,-578.65,0.00050136,60]
[313361894,1707233441057,-500.0,0.00050136,60]
[313361895,1707233441080,-500.0,0.00050136,60]
[313361896,1707233441103,-500.0,0.00050136,60]
[313361897,1707233441127,-500.0,0.00050136,60]
[313361898,1707233441150,-946.27,0.00050136,60]
[313361900,1707233441175,-270.37827438,0.00050136,60]
[313361903,1707233441197,-500.0,0.00050136,60]
[313361906,1707233441221,-500.0,0.00050136,60]
[313361909,1707233441243,-500.0,0.00050136,60]
[313361911,1707233441265,-166.66666666,0.00050143,60]
[313361914,1707233441293,-666.29395341,0.00050184,60]
[313361918,1707233441320,-151.0206,0.00050198,35]
[313361921,1707233441344,-166.66666666,0.000502,60]
[313361925,1707233441367,-191.21826179,0.000502,120]
[313361928,1707233441390,-666.29395341,0.00050235,60]
[313361931,1707233441414,-1017077.94,0.0005025,120]
[313361935,1707233441436,-666.29395341,0.00050258,60]
[313361939,1707233441467,-666.29395341,0.0005027,60]
[313361942,1707233441494,-2038.0,0.000503,60]
[313361943,1707233441517,-666.29395341,0.00050373,60]
[313361944,1707233441544,-666.29395341,0.00050405,60]
[313361945,1707233441568,-666.29395341,0.00050487,60]
[313361946,1707233441594,-151.0206,0.00050498,35]
[313361947,1707233441619,-1000000.0,0.000505,120]
[313361948,1707233441643,-1000000.0,0.000505,120]
[313361949,1707233441666,-150000.0,0.000505,120]
[313361950,1707233441693,-304.81436866,0.00050547,60]
[313361951,1707233441718,-500.0,0.00050547,60]
[313361952,1707233441742,-500.0,0.00050547,60]
[313361953,1707233441766,-500.0,0.00050547,60]
[313361954,1707233441790,-177.55731443,0.00050547,60]
[313361955,1707233441813,-150.0276543,0.00050547,60]
[313361956,1707233441837,-521.28,0.00050547,60]
[313361957,1707233441864,-500.0,0.00050547,60]
[313361958,1707233442017,-313.63,0.00050547,60]
[313361959,1707233442046,-500.0,0.00050547,60]
[313361960,1707233442071,-500.0,0.00050547,60]
[313361961,1707233442096,-505.4874166,0.00050547,60]
[313361962,1707233442122,-500.0,0.00050547,60]
[313361963,1707233442147,-500.0,0.00050547,60]
[313361964,1707233442171,-500.0,0.00050547,60]
[313361965,1707233442195,-500.0,0.00050547,60]
[313361966,1707233442220,-500.0,0.00050547,60]
[313361967,1707233442243,-500.0,0.00050547,60]
[313361968,1707233442266,-500.0,0.00050547,60]
[313361969,1707233442296,-500.0,0.00050547,60]
[313361970,1707233442319,-500.0,0.00050547,60]
[313361971,1707233442342,-332.44525632,0.00050547,60]
[313361972,1707233442369,-171.52151315,0.00050547,60]
[313361973,1707233442394,-500.0,0.00050547,60]
[313361974,1707233442418,-500.0,0.00050547,60]
[313361975,1707233442445,-500.0,0.00050547,60]
[313361976,1707233442470,-549.04160785,0.00050547,60]
[313361977,1707233442494,-569.89784539,0.00050547,60]
[313361978,1707233442518,-500.0,0.00050547,60]
[313361980,1707233442544,-500.0,0.00050547,60]
[313361982,1707233442568,-500.0,0.00050547,60]
[313361984,1707233442592,-155.17841834,0.00050547,60]
[313361987,1707233442617,-500.0,0.00050547,60]
[313361989,1707233442641,-353.53234033,0.00050547,60]
[313361990,1707233442666,-500.0,0.00050547,60]
[313361991,1707233442692,-500.0,0.00050547,60]
[313361992,1707233442716,-500.0,0.00050547,60]
[313361993,1707233442741,-500.0,0.00050547,60]
[313361994,1707233442766,-500.0,0.00050547,60]
[313361995,1707233442793,-500.0,0.00050547,60]
[313361996,1707233442816,-554.26815297,0.00050547,60]
[313361997,1707233442841,-500.0,0.00050547,60]
[313361998,1707233442867,-500.0,0.00050547,60]
[313361999,1707233442892,-500.0,0.00050547,60]